[Event "Allsvenskan Div II 5 2021/2022: SS Manhem II - SK Proletaren"]
[Site "Schackcentrum, Vegatan 20, Gothenburg, Sweden"]
[Date "2022.04.10"]
[Round "1.5"]
[White "Larsson, Goran"]
[Black "Herrman, Jan"]
[Result "0-1"]
[TimeControl "90 minutes for 40 moves + 30 minutes for the rest of the game + 30 seconds per move from move one."]
[WhiteFideId "1731769"]
[BlackFideId "1731882"]
[WhiteElo "1605"]
[BlackElo "1872"]

1. d4 {[%clk 01:29:08]} {[%emt 00:01:50]} Nf6 {[%clk 01:30:54]} {[%emt
00:00:07]} 2. c4 {[%clk 01:29:14]} {[%emt 00:00:24]} c5 {[%clk 01:30:36]}
{[%emt 00:00:48]} 3. e3 {[%clk 01:29:18]} {[%emt 00:00:26]} e6 {[%clk
01:30:53]} {[%emt 00:00:13]} 4. Nc3 {[%clk 01:29:07]} {[%emt 00:00:42]} Be7
{[%clk 01:29:49]} {[%emt 00:01:34]} 5. Nf3 {[%clk 01:29:11]} {[%emt 00:00:27]}
O-O {[%clk 01:29:45]} {[%emt 00:00:34]} 6. Bd3 {[%clk 01:28:55]} {[%emt
00:00:46]} d5 {[%clk 01:29:52]} {[%emt 00:00:22]} 7. O-O {[%clk 01:28:58]}
{[%emt 00:00:28]} Nc6 {[%clk 01:29:24]} {[%emt 00:00:59]} 8. b3 {[%clk
01:28:03]} {[%emt 00:01:23]} dxc4 {[%clk 01:28:47]} {[%emt 00:01:07]} 9. bxc4
{[%clk 01:28:03]} {[%emt 00:00:30]} cxd4 {[%clk 01:28:05]} {[%emt 00:01:12]} 10.
exd4 {[%clk 01:28:20]} {[%emt 00:00:13]} Qd6 {[%clk 01:23:02]} {[%emt
00:05:32]} 11. Ne4 {[%clk 01:23:44]} {[%emt 00:05:07]} Nxe4 {[%clk 01:22:17]}
{[%emt 00:01:14]} 12. Bxe4 {[%clk 01:24:05]} {[%emt 00:00:09]} Bf6 {[%clk
01:22:25]} {[%emt 00:00:22]} 13. Bb2 {[%clk 01:22:21]} {[%emt 00:02:13]} Rd8
{[%clk 01:22:10]} {[%emt 00:00:45]} 14. Bxc6 {[%clk 01:22:25]} {[%emt
00:00:27]} bxc6 {[%clk 01:20:57]} {[%emt 00:01:44]} 15. Qe2 {[%clk 01:21:20]}
{[%emt 00:01:34]} Ba6 {[%clk 01:20:30]} {[%emt 00:00:57]} 16. Rfd1 {[%clk
01:20:15]} {[%emt 00:01:36]} Rab8 {[%clk 01:20:23]} {[%emt 00:00:37]} 17. Rab1
{[%clk 01:15:48]} {[%emt 00:04:57]} Qb4 {[%clk 01:16:06]} {[%emt 00:04:46]} 18.
Nd2 {[%clk 01:12:43]} {[%emt 00:03:35]} Qa4 {[%clk 00:54:24]} {[%emt 00:22:11]}
19. Bc3 {[%clk 00:49:06]} {[%emt 00:24:08]} c5 {[%clk 00:50:43]} {[%emt
00:04:10]} 20. Rxb8 {[%clk 00:38:59]} {[%emt 00:10:38]} Rxb8 {[%clk 00:51:00]}
{[%emt 00:00:13]} 21. Ne4 {[%clk 00:39:18]} {[%emt 00:00:11]} Bxd4 {[%clk
00:49:56]} {[%emt 00:01:34]} 22. Bxd4 {[%clk 00:36:23]} {[%emt 00:03:26]} cxd4
{[%clk 00:46:32]} {[%emt 00:01:20]} 23. h3 {[%clk 00:27:36]} {[%emt 00:11:51]}
Qxc4 {[%clk 00:44:47]} {[%emt 00:02:15]} 24. Qxc4 {[%clk 00:27:35]} {[%emt
00:00:31]} Bxc4 {[%clk 00:45:10]} {[%emt 00:00:07]} 25. Rxd4 {[%clk 00:27:49]}
{[%emt 00:00:16]} Bxa2 {[%clk 00:45:30]} {[%emt 00:00:10]} 26. Ra4 {[%clk
00:28:12]} {[%emt 00:00:07]} Bd5 {[%clk 00:45:10]} {[%emt 00:00:50]} 27. Nc3
{[%clk 00:27:56]} {[%emt 00:00:46]} Rb7 {[%clk 00:44:19]} {[%emt 00:01:20]} 28.
Ra5 {[%clk 00:27:23]} {[%emt 00:01:04]} Rd7 {[%clk 00:43:07]} {[%emt 00:01:42]}
29. g4 {[%clk 00:26:08]} {[%emt 00:01:45]} f6 {[%clk 00:42:35]} {[%emt
00:01:02]} 30. f4 {[%clk 00:26:12]} {[%emt 00:00:27]} Kf7 {[%clk 00:41:59]}
{[%emt 00:01:05]} 31. Kf2 {[%clk 00:26:28]} {[%emt 00:00:14]} Ba8 {[%clk
00:36:02]} {[%emt 00:06:27]} 32. Nb5 {[%clk 00:25:23]} {[%emt 00:01:36]} Kg6
{[%clk 00:26:35]} {[%emt 00:09:57]} 33. Nxa7 {[%clk 00:24:24]} {[%emt
00:01:29]} Rd3 {[%clk 00:25:01]} {[%emt 00:02:03]} 34. Nc8 {[%clk 00:23:47]}
{[%emt 00:01:08]} Bd5 {[%clk 00:20:38]} {[%emt 00:04:52]} 35. h4 {[%clk
00:08:04]} {[%emt 00:16:13]} Rf3+ {[%clk 00:19:14]} {[%emt 00:01:54]} 36. Ke2
{[%clk 00:07:47]} {[%emt 00:00:47]} Rxf4 {[%clk 00:19:34]} {[%emt 00:00:10]} 37.
Ne7+ {[%clk 00:07:57]} {[%emt 00:00:20]} Kf7 {[%clk 00:18:50]} {[%emt
00:01:14]} 38. Nxd5 {[%clk 00:07:19]} {[%emt 00:01:09]} exd5 {[%clk 00:19:09]}
{[%emt 00:00:11]} 39. Rxd5 {[%clk 00:07:42]} {[%emt 00:00:08]} Rxg4 {[%clk
00:19:33]} {[%emt 00:00:06]} 0-1

[Event "Allsvenskan Div II 5 2021/2022: SS Manhem II - SK Proletaren"]
[Site "Schackcentrum, Vegatan 20, Gothenburg, Sweden"]
[Date "2022.04.10"]
[Round "1.6"]
[White "Almemo, Fredrik"]
[Black "Nikolic, Ilija"]
[Result "1-0"]
[TimeControl "90 minutes for 40 moves + 30 minutes for the rest of the game + 30 seconds per move from move one."]
[WhiteFideId "1721186"]
[BlackFideId "1743120"]
[WhiteElo "1844"]
[BlackElo "1396"]

1. d4 {[%clk 01:30:56]} {[%emt 00:00:02]} d5 {[%clk 01:30:46]} {[%emt
00:00:15]} 2. Nf3 {[%clk 01:31:08]} {[%emt 00:00:18]} Nc6 {[%clk 01:31:05]}
{[%emt 00:00:11]} 3. c4 {[%clk 01:27:57]} {[%emt 00:03:41]} dxc4 {[%clk
01:30:20]} {[%emt 00:01:15]} 4. e4 {[%clk 01:25:01]} {[%emt 00:03:25]} Bg4
{[%clk 01:30:24]} {[%emt 00:00:26]} 5. d5 {[%clk 01:22:32]} {[%emt 00:02:59]}
Ne5 {[%clk 01:30:24]} {[%emt 00:00:30]} 6. Bf4 {[%clk 01:12:59]} {[%emt
00:10:03]} Nxf3+ {[%clk 01:30:20]} {[%emt 00:00:34]} 7. gxf3 {[%clk 01:13:18]}
{[%emt 00:00:11]} Bd7 {[%clk 01:30:38]} {[%emt 00:00:12]} 8. Bxc4 {[%clk
01:13:17]} {[%emt 00:00:31]} e6 {[%clk 01:29:41]} {[%emt 00:01:27]} 9. Qb3
{[%clk 01:04:46]} {[%emt 00:09:02]} Bd6 {[%clk 01:26:20]} {[%emt 00:03:50]} 10.
Bxd6 {[%clk 00:45:39]} {[%emt 00:19:38]} cxd6 {[%clk 01:26:36]} {[%emt
00:00:14]} 11. dxe6 {[%clk 00:46:02]} {[%emt 00:00:06]} fxe6 {[%clk 01:26:13]}
{[%emt 00:00:53]} 12. Bxe6 {[%clk 00:44:53]} {[%emt 00:01:39]} Nf6 {[%clk
01:26:29]} {[%emt 00:00:14]} 13. Rg1 {[%clk 00:42:04]} {[%emt 00:03:19]} Qa5+
{[%clk 01:26:03]} {[%emt 00:00:54]} 14. Nc3 {[%clk 00:41:39]} {[%emt 00:00:56]}
O-O-O {[%clk 01:21:15]} {[%emt 00:05:19]} 15. Rxg7 {[%clk 00:38:20]} {[%emt
00:03:50]} Rhf8 {[%clk 01:20:48]} {[%emt 00:00:57]} 16. O-O-O {[%clk 00:36:21]}
{[%emt 00:02:28]} Kb8 {[%clk 01:20:45]} {[%emt 00:00:33]} 17. Rxd6 {[%clk
00:32:21]} {[%emt 00:04:31]} Ne8 {[%clk 01:19:40]} {[%emt 00:01:35]} 18. Rdxd7
{[%clk 00:32:06]} {[%emt 00:00:45]} Rxd7 {[%clk 01:19:47]} {[%emt 00:00:23]} 19.
Rxd7 {[%clk 00:32:19]} {[%emt 00:00:17]} Qg5+ {[%clk 01:19:06]} {[%emt
00:01:11]} 20. Kc2 {[%clk 00:27:27]} {[%emt 00:05:22]} Nc7 {[%clk 01:19:33]}
{[%emt 00:00:02]} 21. Nd5 {[%clk 00:20:00]} {[%emt 00:07:59]} Rc8 {[%clk
01:18:11]} {[%emt 00:01:51]} 22. Rxc7 {[%clk 00:19:08]} {[%emt 00:01:22]} Rxc7+
{[%clk 01:18:16]} {[%emt 00:00:23]} 23. Nxc7 {[%clk 00:19:25]} {[%emt
00:00:14]} Qc5+ {[%clk 01:18:38]} {[%emt 00:00:08]} 24. Qc3 {[%clk 00:19:34]}
{[%emt 00:00:21]} Qxf2+ {[%clk 01:18:25]} {[%emt 00:00:43]} 25. Kb1 {[%clk
00:16:25]} {[%emt 00:03:39]} Qf1+ {[%clk 01:18:32]} {[%emt 00:00:22]} 26. Qc1
{[%clk 00:16:39]} {[%emt 00:00:18]} Qxf3 {[%clk 01:18:19]} {[%emt 00:00:43]} 27.
Na6+ {[%clk 00:16:47]} {[%emt 00:00:23]} 1-0

[Event "Allsvenskan Div II 5 2021/2022: SS Manhem II - SK Proletaren"]
[Site "Schackcentrum, Vegatan 20, Gothenburg, Sweden"]
[Date "2022.04.10"]
[Round "1.7"]
[White "Hitcher, Oscar"]
[Black "Svensson, Soren"]
[Result "0-1"]
[TimeControl "90 minutes for 40 moves + 30 minutes for the rest of the game + 30 seconds per move from move one."]
[WhiteFideId "1746901"]
[BlackFideId "1714937"]
[WhiteElo "1473"]
[BlackElo "1872"]

1. e4 {[%clk 01:29:45]} {[%emt 00:01:13]} e5 {[%clk 01:30:30]} {[%emt
00:00:33]} 2. d4 {[%clk 01:29:45]} {[%emt 00:00:29]} exd4 {[%clk 01:30:42]}
{[%emt 00:00:18]} 3. Nf3 {[%clk 01:29:53]} {[%emt 00:00:21]} Nc6 {[%clk
01:30:51]} {[%emt 00:00:20]} 4. Nxd4 {[%clk 01:29:38]} {[%emt 00:00:46]} Nf6
{[%clk 01:29:26]} {[%emt 00:01:55]} 5. Nxc6 {[%clk 01:28:28]} {[%emt 00:01:41]}
bxc6 {[%clk 01:29:34]} {[%emt 00:00:21]} 6. Bd3 {[%clk 01:24:13]} {[%emt
00:04:45]} d5 {[%clk 01:28:17]} {[%emt 00:01:47]} 7. exd5 {[%clk 01:21:57]}
{[%emt 00:02:46]} cxd5 {[%clk 01:28:19]} {[%emt 00:00:28]} 8. O-O {[%clk
01:19:30]} {[%emt 00:02:57]} Be7 {[%clk 01:24:22]} {[%emt 00:04:27]} 9. Bb5+
{[%clk 01:17:32]} {[%emt 00:02:28]} Bd7 {[%clk 01:21:23]} {[%emt 00:03:29]} 10.
Bxd7+ {[%clk 01:17:18]} {[%emt 00:00:44]} Qxd7 {[%clk 01:21:42]} {[%emt
00:00:12]} 11. Bg5 {[%clk 01:15:50]} {[%emt 00:01:59]} O-O {[%clk 01:21:07]}
{[%emt 00:01:05]} 12. Nc3 {[%clk 01:13:47]} {[%emt 00:02:32]} c6 {[%clk
01:19:56]} {[%emt 00:01:40]} 13. Qf3 {[%clk 01:08:12]} {[%emt 00:06:05]} h6
{[%clk 01:10:51]} {[%emt 00:09:36]} 14. Bh4 {[%clk 01:05:40]} {[%emt 00:03:01]}
Nh7 {[%clk 01:09:07]} {[%emt 00:02:14]} 15. Bxe7 {[%clk 01:02:30]} {[%emt
00:03:41]} Qxe7 {[%clk 01:09:25]} {[%emt 00:00:11]} 16. a3 {[%clk 01:01:27]}
{[%emt 00:01:33]} Ng5 {[%clk 01:05:40]} {[%emt 00:04:15]} 17. Qd3 {[%clk
00:59:19]} {[%emt 00:02:38]} a5 {[%clk 00:59:48]} {[%emt 00:06:23]} 18. Rfe1
{[%clk 00:57:45]} {[%emt 00:02:04]} Qf6 {[%clk 00:56:23]} {[%emt 00:03:54]} 19.
Rad1 {[%clk 00:54:18]} {[%emt 00:03:57]} Rfe8 {[%clk 00:48:13]} {[%emt
00:08:41]} 20. f3 {[%clk 00:47:37]} {[%emt 00:07:10]} Ne6 {[%clk 00:44:47]}
{[%emt 00:03:56]} 21. Na4 {[%clk 00:38:21]} {[%emt 00:09:46]} Qg5 {[%clk
00:32:17]} {[%emt 00:13:00]} 22. Qd2 {[%clk 00:30:03]} {[%emt 00:08:47]} Nf4
{[%clk 00:28:02]} {[%emt 00:04:46]} 23. Rxe8+ {[%clk 00:24:45]} {[%emt
00:05:48]} Rxe8 {[%clk 00:28:24]} {[%emt 00:00:09]} 24. g3 {[%clk 00:18:00]}
{[%emt 00:07:16]} Ne6 {[%clk 00:23:09]} {[%emt 00:05:44]} 25. Qxg5 {[%clk
00:17:36]} {[%emt 00:00:54]} Nxg5 {[%clk 00:22:41]} {[%emt 00:00:58]} 26. f4
{[%clk 00:14:21]} {[%emt 00:03:44]} Nf3+ {[%clk 00:19:12]} {[%emt 00:04:00]} 27.
Kf2 {[%clk 00:06:22]} {[%emt 00:08:29]} Nxh2 {[%clk 00:18:55]} {[%emt
00:00:48]} 28. Nc5 {[%clk 00:06:02]} {[%emt 00:00:49]} Ng4+ {[%clk 00:18:22]}
{[%emt 00:01:03]} 29. Kf3 {[%clk 00:05:19]} {[%emt 00:01:13]} h5 {[%clk
00:17:53]} {[%emt 00:00:59]} 30. Rd3 {[%clk 00:04:42]} {[%emt 00:01:06]} Re1
{[%clk 00:14:56]} {[%emt 00:03:27]} 31. a4 {[%clk 00:03:02]} {[%emt 00:02:10]}
Rf1+ {[%clk 00:08:36]} {[%emt 00:06:50]} 32. Ke2 {[%clk 00:02:38]} {[%emt
00:00:55]} Rh1 {[%clk 00:08:44]} {[%emt 00:00:22]} 33. Rd2 {[%clk 00:01:44]}
{[%emt 00:01:25]} Nf6 {[%clk 00:07:45]} {[%emt 00:01:29]} 34. Kf3 {[%clk
00:01:16]} {[%emt 00:00:58]} Re1 {[%clk 00:04:47]} {[%emt 00:03:28]} 35. Nb3
{[%clk 00:01:12]} {[%emt 00:00:34]} Ne4 {[%clk 00:04:31]} {[%emt 00:00:45]} 36.
Rd4 {[%clk 00:01:09]} {[%emt 00:00:33]} Rg1 {[%clk 00:04:03]} {[%emt 00:00:59]}
37. Nxa5 {[%clk 00:01:08]} {[%emt 00:00:32]} Rxg3+ {[%clk 00:04:06]} {[%emt
00:00:26]} 38. Ke2 {[%clk 00:01:23]} {[%emt 00:00:15]} Rg6 {[%clk 00:02:09]}
{[%emt 00:02:28]} 39. b4 {[%clk 00:01:03]} {[%emt 00:00:49]} h4 {[%clk
00:02:17]} {[%emt 00:00:22]} 40. Rd3 {[%clk 00:01:08]} {[%emt 00:00:26]} Rg2+
{[%clk 00:01:55]} {[%emt 00:00:51]} 41. Kf3 {[%clk 00:00:40]} {[%emt 00:00:58]}
h3 {[%clk 00:18:25]} {[%emt 00:14:01]} 42. Nb3 {[%clk 00:25:12]} {[%emt
00:05:57]} Rg3+ {[%clk 00:17:00]} {[%emt 00:01:55]} 43. Ke2 {[%clk 00:24:44]}
{[%emt 00:00:58]} h2 {[%clk 00:16:59]} {[%emt 00:00:31]} 44. Rd1 {[%clk
00:23:03]} {[%emt 00:02:10]} Rg1 {[%clk 00:17:11]} {[%emt 00:00:18]} 0-1